fUSD/lending_fUSD_20250302
["ID","MTS","AMOUNT","RATE_DAILY","PERIOD"]
[355174417,1740945049157,-500.0,0.00025753,2]
[355174418,1740945049168,-500.0,0.00025753,2]
[355174419,1740945049178,-291.55457612,0.00025753,2]
[355174420,1740945049188,-708.74,0.00025753,2]
[355174421,1740945049198,-500.0,0.00025753,2]
[355174422,1740945049208,-500.0,0.00025753,2]
[355174423,1740945049220,-2022.86,0.00025753,2]
[355174424,1740945049230,-1256.49,0.00025753,2]
[355174425,1740945049240,-500.0,0.00025753,2]
[355174426,1740945049250,-5610.36,0.00025753,2]
[355174427,1740945049260,-500.0,0.00025753,2]
[355174428,1740945049270,-500.0,0.00025753,2]
[355174429,1740945049281,-500.0,0.00025753,2]
[355174430,1740945049291,-500.0,0.00025753,2]
[355174431,1740945049301,-500.0,0.00025753,2]
[355174432,1740945049310,-542.2,0.00025753,2]
[355174433,1740945049320,-866.41,0.00025753,2]
[355174434,1740945049331,-500.0,0.00025753,2]
[355174435,1740945049341,-500.0,0.00025753,2]
[355174436,1740945049351,-500.0,0.00025753,2]
[355174437,1740945049360,-500.0,0.00025753,2]
[355174438,1740945049370,-950.68,0.00025753,2]
[355174439,1740945049381,-500.0,0.00025753,2]
[355174440,1740945049391,-500.0,0.00025753,2]
[355174441,1740945049401,-500.0,0.00025753,2]
[355174442,1740945049416,-500.0,0.00025753,2]
[355174443,1740945049427,-667.13,0.00025753,2]
[355174444,1740945049438,-500.0,0.00025753,2]
[355174445,1740945049450,-500.0,0.00025753,2]
[355174446,1740945049460,-500.0,0.00025753,2]
[355174447,1740945049471,-554.27,0.00025753,2]
[355174448,1740945049483,-705.18,0.00025753,2]
[355174449,1740945049493,-351.93,0.00025753,2]
[355174450,1740945049503,-787.64,0.00025753,2]
[355174451,1740945049513,-500.01,0.00025753,2]
[355174452,1740945049523,-564.21,0.00025753,2]
[355174453,1740945049533,-500.0,0.00025753,2]
[355174454,1740945049543,-760.26,0.00025753,2]
[355174455,1740945049553,-500.0,0.00025753,2]
[355174456,1740945049563,-1360.86,0.00025753,2]
[355174457,1740945049574,-4000.0,0.00025753,2]
[355174458,1740945049584,-591.86,0.00025753,2]
[355174459,1740945049594,-589.01,0.00025753,2]
[355174460,1740945049605,-500.0,0.00025753,2]
[355174461,1740945049616,-540.25,0.00025753,2]
[355174462,1740945049626,-921.01,0.00025753,2]
[355174463,1740945049637,-500.0,0.00025753,2]
[355174464,1740945049648,-721.37,0.00025753,2]
[355174465,1740945049658,-682.59,0.00025753,2]
[355174466,1740945049667,-894.13,0.00025753,2]
[355174467,1740945049677,-768.63,0.00025753,2]
[355174468,1740945049686,-834.9,0.00025753,2]
[355174469,1740945049696,-1090.72,0.00025753,2]
[355174470,1740945049705,-680.75,0.00025753,2]
[355174471,1740945049714,-500.0,0.00025753,2]
[355174472,1740945049723,-500.0,0.00025753,2]
[355174473,1740945049733,-573.01,0.00025753,2]
[355174474,1740945049743,-500.0,0.00025753,2]
[355174475,1740945049753,-1044.01,0.00025764,2]
[355174476,1740945049763,-188.6625956,0.00025774,4]
[355174477,1740945049772,-1944.84437666,0.00025797,4]
[355174478,1740945049782,-1044.01,0.00025888,2]
[355174479,1740945049794,-500.0,0.000259,9]
[355174480,1740945049804,-924.7036,0.00026,2]
[355174481,1740945049814,-1354.58279323,0.00026003,2]
[355174482,1740945049826,-1044.01,0.00026013,2]
[355174483,1740945049836,-1159.76,0.00026026,2]
[355174484,1740945049846,-1059.43,0.00026026,2]
[355174485,1740945049856,-708.05,0.00026026,2]
[355174486,1740945049920,-500.0,0.00026027,2]
[355174487,1740945049932,-500.0,0.00026027,2]
[355174488,1740945049942,-249.08,0.00026027,2]
[355174489,1740945049951,-500.0,0.00026027,2]
[355174490,1740945049961,-500.0,0.00026027,2]
[355174491,1740945049971,-500.0,0.00026027,2]
[355174492,1740945049980,-500.0,0.00026027,2]
[355174493,1740945049990,-500.0,0.00026027,2]
[355174494,1740945050000,-460.81,0.00026027,2]
[355174495,1740945050009,-353.917026,0.00026027,2]
[355174496,1740945050019,-500.0,0.00026027,2]
[355174497,1740945050028,-500.0,0.00026027,2]
[355174498,1740945050037,-500.0,0.00026027,2]
[355174499,1740945050047,-500.0,0.00026027,2]
[355174500,1740945050056,-500.0,0.00026027,2]
[355174501,1740945050065,-500.0,0.00026027,2]
[355174502,1740945050076,-199.496843,0.00026027,2]
[355174503,1740945050086,-500.0,0.00026027,2]
[355174504,1740945050095,-500.0,0.00026027,2]
[355174505,1740945050106,-500.0,0.00026027,2]
[355174506,1740945050115,-500.0,0.00026027,2]
[355174507,1740945050125,-500.0,0.00026027,2]
[355174508,1740945050134,-500.0,0.00026027,2]
[355174509,1740945050144,-500.0,0.00026027,2]
[355174510,1740945050153,-500.0,0.00026027,2]
[355174511,1740945050163,-500.0,0.00026027,2]
[355174512,1740945050173,-500.0,0.00026027,2]
[355174513,1740945050183,-618.57561075,0.00026027,2]
[355174514,1740945050192,-500.0,0.00026027,2]
[355174515,1740945050201,-559.65634225,0.00026027,2]
[355174516,1740945050211,-719.73,0.00026027,2]
[355174517,1740945050220,-500.0,0.00026027,2]
[355174518,1740945050230,-500.0,0.00026027,2]
[355174519,1740945050239,-500.0,0.00026027,2]
[355174520,1740945050249,-500.0,0.00026027,2]
[355174521,1740945050258,-1093.93,0.00026027,2]
[355174522,1740945050267,-500.0,0.00026027,2]
[355174523,1740945050277,-505.66,0.00026027,2]
[355174524,1740945050286,-500.0,0.00026027,2]
[355174525,1740945050295,-500.0,0.00026027,2]
[355174526,1740945050304,-500.0,0.00026027,2]
[355174527,1740945050313,-500.0,0.00026027,2]
[355174528,1740945050325,-500.0,0.00026027,2]
[355174529,1740945050335,-500.0,0.00026027,2]
[355174530,1740945050344,-594.96,0.00026027,2]
[355174531,1740945050353,-500.0,0.00026027,2]
[355174532,1740945050362,-593.0,0.00026027,2]
[355174533,1740945050372,-650.42,0.00026027,2]
[355174534,1740945050382,-559.89,0.00026027,2]
[355174535,1740945050391,-500.0,0.00026027,2]
[355174536,1740945050401,-500.0,0.00026027,2]
[355174537,1740945050414,-500.0,0.00026027,2]
[355174538,1740945050423,-749.59,0.00026027,2]
[355174539,1740945050433,-500.0,0.00026027,2]
[355174540,1740945050443,-500.0,0.00026027,2]
[355174541,1740945050453,-857.63,0.00026027,2]
[355174542,1740945050463,-500.0,0.00026027,2]
[355174543,1740945050472,-500.0,0.00026027,2]
[355174544,1740945050481,-500.0,0.00026027,2]
[355174545,1740945050491,-500.0,0.00026027,2]
[355174546,1740945050502,-536.7,0.00026027,2]
[355174547,1740945050511,-500.0,0.00026027,2]
[355174548,1740945050521,-506.49,0.00026027,2]
[355174549,1740945050530,-901.77,0.00026027,2]
[355174550,1740945050540,-2877.75,0.00026027,2]
[355174551,1740945050549,-509.96,0.00026027,2]
[355174552,1740945050559,-500.0,0.00026027,2]
[355174553,1740945050568,-500.0,0.00026027,2]
[355174554,1740945050580,-785.07,0.00026027,2]
[355174555,1740945050589,-500.0,0.00026027,2]
[355174556,1740945050598,-500.0,0.00026027,2]
[355174557,1740945050608,-500.0,0.00026027,2]
[355174558,1740945050618,-500.0,0.00026027,2]
[355174559,1740945050627,-708.74,0.00026027,2]
[355174560,1740945050636,-500.0,0.00026027,2]
[355174561,1740945050646,-500.0,0.00026027,2]
[355174562,1740945050656,-2022.86,0.00026027,2]
[355174563,1740945050666,-1256.49,0.00026027,2]
[355174564,1740945050676,-500.0,0.00026027,2]
[355174565,1740945050686,-5610.36,0.00026027,2]
[355174566,1740945050695,-500.0,0.00026027,2]
[355174567,1740945050705,-500.0,0.00026027,2]
[355174568,1740945050715,-500.0,0.00026027,2]
[355174569,1740945050726,-500.0,0.00026027,2]
[355174570,1740945050736,-500.0,0.00026027,2]
[355174571,1740945050745,-542.2,0.00026027,2]
[355174572,1740945050755,-866.41,0.00026027,2]
[355174573,1740945050764,-500.0,0.00026027,2]
[355174574,1740945050774,-500.0,0.00026027,2]
[355174575,1740945050784,-500.0,0.00026027,2]
[355174576,1740945050793,-500.0,0.00026027,2]
[355174577,1740945050802,-950.68,0.00026027,2]
[355174578,1740945050812,-500.0,0.00026027,2]
[355174579,1740945050822,-500.0,0.00026027,2]
[355174580,1740945050832,-352.88,0.00026027,2]
[355174581,1740945050842,-500.0,0.00026027,2]
[355174582,1740945050852,-667.13,0.00026027,2]
[355174583,1740945050862,-186.96925055,0.00026027,2]
[355174584,1740945050872,-500.0,0.00026027,2]
[355174585,1740945050882,-500.0,0.00026027,2]
[355174586,1740945050891,-554.27,0.00026027,2]
[355174587,1740945050900,-705.18,0.00026027,2]
[355174588,1740945050910,-787.64,0.00026027,2]
[355174589,1740945050919,-500.01,0.00026027,2]
[355174590,1740945050928,-564.21,0.00026027,2]
[355174591,1740945050938,-500.0,0.00026027,2]
[355174592,1740945050947,-760.26,0.00026027,2]
[355174593,1740945050957,-500.0,0.00026027,2]
[355174594,1740945050966,-1360.86,0.00026027,2]
[355174595,1740945050976,-591.86,0.00026027,2]
[355174596,1740945050986,-589.01,0.00026027,2]
[355174597,1740945050996,-500.0,0.00026027,2]
[355174598,1740945051006,-540.25,0.00026027,2]
[355174599,1740945051016,-921.01,0.00026027,2]
[355174600,1740945051026,-500.0,0.00026027,2]
[355174601,1740945051036,-721.37,0.00026027,2]
[355174602,1740945051046,-682.59,0.00026027,2]
[355174603,1740945051055,-894.13,0.00026027,2]
[355174604,1740945051065,-768.63,0.00026027,2]
[355174605,1740945051077,-834.9,0.00026027,2]
[355174606,1740945051087,-1090.72,0.00026027,2]
[355174607,1740945051096,-680.75,0.00026027,2]
[355174608,1740945051106,-500.0,0.00026027,2]
[355174609,1740945051115,-500.0,0.00026027,2]
[355174610,1740945051125,-573.01,0.00026027,2]
[355174611,1740945051135,-500.0,0.00026027,2]
[355174612,1740945051145,-1944.84437666,0.00026038,4]
[355174613,1740945051155,-150.0,0.00026039,2]
[355174614,1740945051164,-150.0,0.00026044,2]
[355174615,1740945051174,-1000.0,0.00026051,2]
[355174616,1740945051183,-199.95925229,0.00026054,2]
[355174617,1740945051193,-150.92562861,0.00026068,2]
[355174618,1740945051203,-150.0,0.00026069,2]
[355174619,1740945051212,-8243.27344855,0.0002607,2]
[355174620,1740945051222,-150.0,0.00026072,2]
[355174621,1740945051231,-150.0,0.00026074,2]
[355174622,1740945051241,-150.0,0.00026085,2]
[355174623,1740945051250,-150.0,0.00026087,2]
[355174624,1740945051261,-200.0,0.0002609,2]
[355174625,1740945051271,-1000.0,0.0002609,2]
[355174626,1740945051282,-500.0,0.00026091,15]
[355174627,1740945051291,-2000.0,0.00026091,15]
[355174628,1740945051301,-500.0,0.00026091,2]
[355174629,1740945051310,-200.0,0.00026091,2]
[355174630,1740945051320,-169.97,0.00026097,2]
[355174631,1740945051330,-150.0,0.000261,2]
[355174632,1740945051340,-174.04451007,0.00026101,2]
[355174633,1740945051350,-150.0,0.00026103,2]
[355174634,1740945051359,-150.0,0.00026105,2]
[355174635,1740945051369,-150.0,0.00026117,2]
[355174636,1740945051378,-150.0,0.0002612,2]
[355174637,1740945051388,-150.0,0.00026126,2]
[355174638,1740945051397,-1000.0,0.00026126,2]
[355174639,1740945051407,-1000.0,0.00026134,2]
[355174640,1740945051421,-150.0,0.00026143,2]
[355174641,1740945051431,-150.0,0.00026159,2]
[355174642,1740945051440,-150.0,0.00026181,2]
[355174643,1740945051451,-150.0,0.00026185,2]
[355174644,1740945051462,-150.0,0.00026189,2]
[355174645,1740945051471,-150.0,0.00026189,2]
[355174646,1740945051481,-150.0,0.0002619,2]
[355174647,1740945051492,-1030.0,0.000262,2]
[355174648,1740945051502,-151.0,0.00026201,7]
[355174649,1740945051512,-151.0,0.00026201,7]
[355174650,1740945051522,-151.0,0.00026201,7]
[355174651,1740945051532,-151.0,0.00026201,7]
[355174652,1740945051542,-151.0,0.00026201,7]
[355174653,1740945051551,-151.0,0.00026201,7]
[355174654,1740945051561,-151.0,0.00026201,7]
[355174655,1740945051572,-151.0,0.00026201,7]
[355174656,1740945051581,-151.0,0.00026201,7]
[355174657,1740945051591,-151.0,0.00026201,7]
[355174658,1740945051600,-151.0,0.00026201,7]
[355174659,1740945051610,-151.0,0.00026201,7]
[355174660,1740945051620,-151.0,0.00026201,7]
[355174661,1740945051630,-151.0,0.00026201,7]
[355174662,1740945051640,-151.0,0.00026201,7]
[355174663,1740945051650,-151.0,0.00026201,7]
[355174664,1740945051659,-151.0,0.00026201,7]
[355174665,1740945051669,-151.0,0.00026201,7]
[355174666,1740945051678,-300.238277,0.00026201,7]
[355174667,1740945051687,-300.238277,0.00026201,7]
[355174668,1740945051697,-151.0,0.00026201,7]
[355174669,1740945051707,-151.938603,0.00026201,7]
[355174670,1740945051716,-151.0,0.00026201,7]
[355174671,1740945051726,-961.0125,0.00026201,2]
[355174672,1740945051735,-179131.598,0.00026201,2]
[355174673,1740945051744,-1000.0,0.00026201,120]
[355174674,1740945051754,-150.0,0.00026209,2]
[355174675,1740945051764,-150.0,0.00026227,2]
[355174676,1740945051773,-150.0,0.00026228,2]
[355174677,1740945051782,-150.0,0.00026245,2]
[355174678,1740945051791,-151.0,0.00026252,7]
[355174679,1740945051801,-151.0,0.00026252,7]
[355174680,1740945051810,-151.0,0.00026252,7]
[355174681,1740945051820,-151.0,0.00026252,7]
[355174682,1740945051829,-152.566156,0.00026252,7]
[355174683,1740945051840,-556.506965,0.00026252,7]
[355174684,1740945051849,-556.506965,0.00026252,7]
[355174685,1740945051859,-151.0,0.00026252,7]
[355174686,1740945051869,-150.0,0.00026252,2]
[355174687,1740945051879,-1000.0,0.00026255,2]
[355174688,1740945051888,-150.0,0.00026259,2]
[355174689,1740945051897,-151.0,0.00026279,7]
[355174690,1740945051907,-151.0,0.00026279,7]
[355174691,1740945051916,-151.0,0.00026279,7]
[355174692,1740945051926,-151.0,0.00026279,7]
[355174693,1740945051936,-1944.84437666,0.00026279,4]
[355174694,1740945051945,-150.0,0.0002628,2]
[355174695,1740945051955,-150.0,0.00026283,2]
[355174696,1740945051965,-358.51489501,0.00026291,2]
[355174697,1740945051975,-1159.76,0.000263,2]
[355174698,1740945051985,-1059.43,0.000263,2]
[355174699,1740945051995,-708.05,0.000263,2]
[355174700,1740945052005,-151.0,0.000263,7]
[355174701,1740945052015,-268.202459,0.000263,7]
[355174702,1740945052025,-1584.508964,0.000263,7]
[355174703,1740945052035,-151.0,0.000263,7]
[355174704,1740945052044,-1584.508964,0.000263,7]
[355174705,1740945052054,-510.41,0.00026301,2]
[355174706,1740945052064,-500.0,0.00026301,2]
[355174707,1740945052076,-500.0,0.00026301,2]
[355174708,1740945052085,-500.0,0.00026301,2]
[355174709,1740945052095,-500.0,0.00026301,2]
[355174710,1740945052105,-500.0,0.00026301,2]
[355174711,1740945052115,-323.39651049,0.00026301,2]
[355174712,1740945052124,-151.0,0.00026301,7]
[355174713,1740945052134,-353.917026,0.00026301,2]
[355174714,1740945052143,-500.0,0.00026301,2]
[355174715,1740945052154,-151.0,0.00026301,7]
[355174716,1740945052163,-509.21519295,0.00026301,2]
[355174717,1740945052172,-500.0,0.00026301,2]
[355174718,1740945052182,-394.32356158,0.00026301,2]
[355174719,1740945052191,-500.0,0.00026301,2]
[355174720,1740945052201,-500.0,0.00026301,2]
[355174721,1740945052210,-199.496843,0.00026301,2]
[355174722,1740945052220,-500.0,0.00026301,2]
[355174723,1740945052230,-500.0,0.00026301,2]
[355174724,1740945052240,-500.0,0.00026301,2]
[355174725,1740945052249,-500.0,0.00026301,2]
[355174726,1740945052259,-500.0,0.00026301,2]
[355174727,1740945052269,-500.0,0.00026301,2]
[355174728,1740945052279,-500.0,0.00026301,2]
[355174729,1740945052288,-500.0,0.00026301,2]
[355174730,1740945052297,-500.0,0.00026301,2]
[355174731,1740945052307,-500.0,0.00026301,2]
[355174732,1740945052316,-500.0,0.00026301,2]
[355174733,1740945052326,-719.73,0.00026301,2]
[355174734,1740945052336,-500.0,0.00026301,2]
[355174735,1740945052346,-500.0,0.00026301,2]
[355174736,1740945052355,-500.0,0.00026301,2]
[355174737,1740945052365,-500.0,0.00026301,2]
[355174738,1740945052374,-1093.93,0.00026301,2]
[355174739,1740945052384,-500.0,0.00026301,2]
[355174740,1740945052393,-505.66,0.00026301,2]
[355174741,1740945052405,-500.0,0.00026301,2]
[355174742,1740945052418,-500.0,0.00026301,2]
[355174743,1740945052428,-500.0,0.00026301,2]
[355174744,1740945052438,-500.0,0.00026301,2]
[355174745,1740945052449,-500.0,0.00026301,2]
[355174746,1740945052459,-500.0,0.00026301,2]
[355174747,1740945052468,-594.96,0.00026301,2]
[355174748,1740945052479,-500.0,0.00026301,2]
[355174749,1740945052489,-593.0,0.00026301,2]
[355174750,1740945052499,-650.42,0.00026301,2]
[355174751,1740945052509,-559.89,0.00026301,2]
[355174752,1740945052519,-500.0,0.00026301,2]
[355174753,1740945052529,-500.0,0.00026301,2]
[355174754,1740945052539,-500.0,0.00026301,2]
[355174755,1740945052549,-749.59,0.00026301,2]
[355174756,1740945052559,-500.0,0.00026301,2]
[355174757,1740945052569,-500.0,0.00026301,2]
[355174758,1740945052580,-857.63,0.00026301,2]
[355174759,1740945052590,-500.0,0.00026301,2]
[355174760,1740945052601,-500.0,0.00026301,2]
[355174761,1740945052611,-500.0,0.00026301,2]
[355174762,1740945052621,-584.36,0.00026301,2]
[355174763,1740945052632,-536.7,0.00026301,2]
[355174764,1740945052642,-500.0,0.00026301,2]
[355174765,1740945052652,-506.49,0.00026301,2]
[355174766,1740945052662,-901.77,0.00026301,2]
[355174767,1740945052672,-2877.75,0.00026301,2]
[355174768,1740945052682,-509.96,0.00026301,2]
[355174769,1740945052692,-500.0,0.00026301,2]
[355174770,1740945052702,-500.0,0.00026301,2]
[355174771,1740945052712,-785.07,0.00026301,2]
[355174772,1740945052721,-500.0,0.00026301,2]
[355174773,1740945052732,-500.0,0.00026301,2]
[355174774,1740945052742,-176.46,0.00026301,2]
[355174775,1740945052753,-566.43,0.00026301,2]
[355174776,1740945052762,-708.74,0.00026301,2]
[355174777,1740945052772,-500.0,0.00026301,2]
[355174778,1740945052783,-500.0,0.00026301,2]
[355174779,1740945052793,-2022.86,0.00026301,2]
[355174780,1740945052804,-1256.49,0.00026301,2]
[355174781,1740945052816,-500.0,0.00026301,2]
[355174782,1740945052827,-500.0,0.00026301,2]
[355174783,1740945052837,-500.0,0.00026301,2]
[355174784,1740945052847,-5610.36,0.00026301,2]
[355174785,1740945052857,-500.0,0.00026301,2]
[355174786,1740945052867,-557.0429,0.00026301,2]
[355174787,1740945052876,-500.0,0.00026301,2]
[355174788,1740945052886,-542.2,0.00026301,2]
[355174789,1740945052895,-866.41,0.00026301,2]
[355174790,1740945052905,-500.0,0.00026301,2]
[355174791,1740945052915,-500.0,0.00026301,2]
[355174792,1740945052924,-500.0,0.00026301,2]
[355174793,1740945052934,-500.0,0.00026301,2]
[355174794,1740945052943,-950.68,0.00026301,2]
[355174795,1740945052952,-500.0,0.00026301,2]
[355174796,1740945052962,-500.0,0.00026301,2]
[355174797,1740945052971,-500.0,0.00026301,2]
[355174798,1740945052982,-667.13,0.00026301,2]
[355174799,1740945052992,-500.0,0.00026301,2]
[355174800,1740945053003,-500.0,0.00026301,2]
[355174801,1740945053014,-554.27,0.00026301,2]
[355174802,1740945053025,-705.18,0.00026301,2]
[355174803,1740945053035,-787.64,0.00026301,2]
[355174804,1740945053045,-500.01,0.00026301,2]
[355174805,1740945053055,-564.21,0.00026301,2]
[355174806,1740945053065,-500.0,0.00026301,2]
[355174807,1740945053076,-760.26,0.00026301,2]
[355174808,1740945053086,-500.0,0.00026301,2]
[355174809,1740945053096,-1360.86,0.00026301,2]
[355174810,1740945053106,-591.86,0.00026301,2]
[355174811,1740945053117,-589.01,0.00026301,2]
[355174812,1740945053128,-500.0,0.00026301,2]
[355174813,1740945053139,-540.25,0.00026301,2]
[355174814,1740945053149,-921.01,0.00026301,2]
[355174815,1740945053160,-500.0,0.00026301,2]
[355174816,1740945053170,-721.37,0.00026301,2]
[355174817,1740945053180,-682.59,0.00026301,2]
[355174818,1740945053189,-894.13,0.00026301,2]
[355174819,1740945053199,-768.63,0.00026301,2]
[355174820,1740945053209,-834.9,0.00026301,2]
[355174821,1740945053219,-1090.72,0.00026301,2]
[355174822,1740945053229,-680.75,0.00026301,2]
[355174823,1740945053239,-500.0,0.00026301,2]
[355174824,1740945053249,-190.39726849,0.00026301,2]
[355174825,1740945053259,-573.01,0.00026301,2]
[355174826,1740945053271,-500.0,0.00026301,2]
[355174827,1740945053281,-24487.6174232,0.00026354,2]
[355174828,1740945053291,-11089.121148,0.00026372,2]
[355174829,1740945053301,-420.0,0.0002639,5]
[355174830,1740945053311,-1000.0,0.0002641,2]
[355174831,1740945053321,-36350.4398,0.0002641,2]
[355174832,1740945053331,-1382.85,0.00026421,2]
[355174833,1740945053341,-348.1107,0.00026475,2]
[355174834,1740945053351,-1354.58279323,0.00026519,2]
[355174835,1740945053362,-1944.84437666,0.00026521,4]
[355174836,1740945053372,-470.42719959,0.0002654,5]
[355174837,1740945053385,-1159.76,0.00026574,2]
[355174838,1740945053395,-1059.43,0.00026574,2]
[355174839,1740945053407,-708.05,0.00026574,2]
[355174840,1740945053419,-8243.27344855,0.00026574,2]
[355174841,1740945053430,-500.0,0.00026575,2]
[355174842,1740945053441,-500.0,0.00026575,2]
[355174843,1740945053451,-399.91,0.00026575,2]
[355174844,1740945053462,-500.0,0.00026575,2]
[355174845,1740945053472,-500.0,0.00026575,2]
[355174846,1740945053482,-353.917026,0.00026575,2]
[355174847,1740945053493,-500.0,0.00026575,2]
[355174848,1740945053503,-500.0,0.00026575,2]
[355174849,1740945053515,-500.0,0.00026575,2]
[355174850,1740945053524,-500.0,0.00026575,2]
[355174851,1740945053535,-199.496843,0.00026575,2]
[355174852,1740945053544,-500.0,0.00026575,2]
[355174853,1740945053554,-500.0,0.00026575,2]
[355174854,1740945053564,-500.0,0.00026575,2]
[355174855,1740945053576,-500.0,0.00026575,2]
[355174856,1740945053587,-500.0,0.00026575,2]
[355174857,1740945053596,-500.0,0.00026575,2]
[355174858,1740945053607,-323.82,0.00026575,2]
[355174859,1740945053617,-500.0,0.00026575,2]
[355174860,1740945053628,-500.0,0.00026575,2]
[355174861,1740945053638,-500.0,0.00026575,2]
[355174862,1740945053648,-500.0,0.00026575,2]
[355174863,1740945053658,-719.73,0.00026575,2]
[355174864,1740945053668,-500.0,0.00026575,2]
[355174865,1740945053678,-500.0,0.00026575,2]
[355174866,1740945053689,-500.0,0.00026575,2]
[355174867,1740945053700,-500.0,0.00026575,2]
[355174868,1740945053710,-1093.93,0.00026575,2]
[355174869,1740945053720,-500.0,0.00026575,2]
[355174870,1740945053730,-505.66,0.00026575,2]
[355174871,1740945053740,-500.0,0.00026575,2]
[355174872,1740945053750,-500.0,0.00026575,2]
[355174873,1740945053760,-500.0,0.00026575,2]
[355174874,1740945053771,-500.0,0.00026575,2]
[355174875,1740945053781,-500.0,0.00026575,2]
[355174876,1740945053791,-500.0,0.00026575,2]
[355174877,1740945053802,-594.96,0.00026575,2]
[355174878,1740945053812,-500.0,0.00026575,2]
[355174879,1740945053822,-593.0,0.00026575,2]
[355174880,1740945053832,-650.42,0.00026575,2]
[355174881,1740945053842,-559.89,0.00026575,2]
[355174882,1740945053852,-500.0,0.00026575,2]
[355174883,1740945053862,-500.0,0.00026575,2]
[355174884,1740945053871,-500.0,0.00026575,2]
[355174885,1740945053881,-749.59,0.00026575,2]
[355174886,1740945053892,-500.0,0.00026575,2]
[355174887,1740945053902,-500.0,0.00026575,2]
[355174888,1740945053914,-857.63,0.00026575,2]
[355174889,1740945053924,-500.0,0.00026575,2]
[355174890,1740945053935,-500.0,0.00026575,2]
[355174891,1740945053945,-500.0,0.00026575,2]
[355174892,1740945053956,-536.7,0.00026575,2]
[355174893,1740945053966,-500.0,0.00026575,2]
[355174894,1740945053977,-506.49,0.00026575,2]
[355174895,1740945053988,-901.77,0.00026575,2]
[355174896,1740945053999,-2877.75,0.00026575,2]
[355174897,1740945054010,-509.96,0.00026575,2]
[355174898,1740945054021,-500.0,0.00026575,2]
[355174899,1740945054032,-500.0,0.00026575,2]
[355174900,1740945054044,-785.07,0.00026575,2]
[355174901,1740945054054,-500.0,0.00026575,2]
[355174902,1740945054065,-500.0,0.00026575,2]
[355174903,1740945054077,-708.74,0.00026575,2]
[355174904,1740945054088,-500.0,0.00026575,2]
[355174905,1740945054098,-500.0,0.00026575,2]
[355174906,1740945054109,-2022.86,0.00026575,2]
[355174907,1740945054120,-1256.49,0.00026575,2]
[355174908,1740945054130,-500.0,0.00026575,2]
[355174909,1740945054140,-500.0,0.00026575,2]
[355174910,1740945054150,-500.0,0.00026575,2]
[355174911,1740945054160,-5610.36,0.00026575,2]
[355174912,1740945054170,-500.0,0.00026575,2]
[355174913,1740945054180,-500.0,0.00026575,2]
[355174914,1740945054190,-542.2,0.00026575,2]
[355174915,1740945054201,-866.41,0.00026575,2]
[355174916,1740945054212,-500.0,0.00026575,2]